[Event "GrandPrix_29.05"]
[Site "Chess.com"]
[Date "2020.05.29"]
[Round "7"]
[White "Funo09"]
[Black "kirillshevchenko"]
[Result "1/2-1/2"]
[WhiteElo "2648"]
[BlackElo "2727"]
[TimeControl "600+2"]
[EndTime "12:36:45 PDT"]
[Termination "Game drawn - insufficient material"]

1. e4 {[%clk 0:10:01.9]} 1... c5 {[%clk 0:10:00.4]} 2. Nc3 {[%clk 0:10:02.2]}
2... d6 {[%clk 0:10:01.4]} 3. f4 {[%clk 0:10:02]} 3... g6 {[%clk 0:10:01.4]} 4.
Nf3 {[%clk 0:10:03.5]} 4... Bg7 {[%clk 0:10:02.2]} 5. d4 {[%clk 0:10:05.1]} 5...
cxd4 {[%clk 0:09:59.6]} 6. Nxd4 {[%clk 0:10:07]} 6... Nc6 {[%clk 0:09:24.8]} 7.
Be3 {[%clk 0:10:07.5]} 7... Nf6 {[%clk 0:09:22.8]} 8. Be2 {[%clk 0:10:08.4]}
8... O-O {[%clk 0:09:10]} 9. Nb3 {[%clk 0:10:09.3]} 9... a5 {[%clk 0:08:52.3]}
10. a4 {[%clk 0:10:08.1]} 10... e5 {[%clk 0:07:53.1]} 11. O-O {[%clk 0:09:58.7]}
11... exf4 {[%clk 0:07:42]} 12. Bxf4 {[%clk 0:09:58.6]} 12... Re8 {[%clk
0:07:40.9]} 13. Qxd6 {[%clk 0:09:37.6]} 13... Qxd6 {[%clk 0:06:46]} 14. Bxd6
{[%clk 0:09:39.5]} 14... Nxe4 {[%clk 0:06:47.6]} 15. Nxe4 {[%clk 0:09:37.8]}
15... Rxe4 {[%clk 0:06:49.5]} 16. Bf3 {[%clk 0:09:22.1]} 16... Re8 {[%clk
0:06:26.2]} 17. c3 {[%clk 0:08:51.7]} 17... Ne5 {[%clk 0:06:05.2]} 18. Bxe5
{[%clk 0:04:48.3]} 18... Rxe5 {[%clk 0:05:56.7]} 19. Rad1 {[%clk 0:04:48.6]}
19... Be6 {[%clk 0:05:44.9]} 20. Nd4 {[%clk 0:04:48.8]} 20... Bc4 {[%clk
0:05:41.3]} 21. Bxb7 {[%clk 0:04:17.1]} 21... Rae8 {[%clk 0:05:32.9]} 22. Bc6
{[%clk 0:03:45.3]} 22... R8e7 {[%clk 0:04:57.1]} 23. Nf3 {[%clk 0:03:02.5]}
23... Rc5 {[%clk 0:04:43]} 24. Rd8+ {[%clk 0:02:31.1]} 24... Bf8 {[%clk
0:04:43.7]} 25. Bb5 {[%clk 0:02:23.6]} 25... Bxb5 {[%clk 0:04:04.3]} 26. axb5
{[%clk 0:02:23.2]} 26... Rxb5 {[%clk 0:04:05.9]} 27. b4 {[%clk 0:01:30.8]} 27...
axb4 {[%clk 0:03:50.8]} 28. Nd4 {[%clk 0:01:31.7]} 28... Rb6 {[%clk 0:03:27]}
29. cxb4 {[%clk 0:01:32.5]} 29... Kg7 {[%clk 0:03:23.9]} 30. b5 {[%clk
0:01:04.8]} 30... Reb7 {[%clk 0:02:05.6]} 31. Kh1 {[%clk 0:00:56.2]} 31... Bc5
{[%clk 0:01:51.7]} 32. Rd5 {[%clk 0:00:40.8]} 32... Bxd4 {[%clk 0:01:52.5]} 33.
Rxd4 {[%clk 0:00:42.7]} 33... Rxb5 {[%clk 0:01:54.1]} 34. Rd2 {[%clk 0:00:44.2]}
34... f5 {[%clk 0:01:42.1]} 35. h3 {[%clk 0:00:44.1]} 35... Rb4 {[%clk
0:01:35.3]} 36. Kh2 {[%clk 0:00:45.3]} 36... h5 {[%clk 0:01:35.8]} 37. Rf3
{[%clk 0:00:43.3]} 37... h4 {[%clk 0:01:34.5]} 38. Rdf2 {[%clk 0:00:42.8]} 38...
Re7 {[%clk 0:01:30.5]} 39. Rf4 {[%clk 0:00:42.5]} 39... Ree4 {[%clk 0:01:31.5]}
40. Rxe4 {[%clk 0:00:41.3]} 40... Rxe4 {[%clk 0:01:14.9]} 41. Ra2 {[%clk
0:00:41.9]} 41... Kf6 {[%clk 0:01:14.8]} 42. Kg1 {[%clk 0:00:43.3]} 42... g5
{[%clk 0:01:11.9]} 43. Kf2 {[%clk 0:00:43.9]} 43... Ke5 {[%clk 0:01:12.9]} 44.
Kg1 {[%clk 0:00:38.2]} 44... Rd4 {[%clk 0:01:06.6]} 45. Re2+ {[%clk 0:00:37]}
45... Re4 {[%clk 0:00:59.3]} 46. Ra2 {[%clk 0:00:37.6]} 46... Re3 {[%clk
0:00:59.8]} 47. Kf2 {[%clk 0:00:34.8]} 47... Kf4 {[%clk 0:01:00.7]} 48. Ra5
{[%clk 0:00:32.4]} 48... Re4 {[%clk 0:00:58.9]} 49. Ra3 {[%clk 0:00:32.3]} 49...
g4 {[%clk 0:00:57]} 50. hxg4 {[%clk 0:00:28]} 50... fxg4 {[%clk 0:00:58.9]} 51.
Ra8 {[%clk 0:00:26.3]} 51... Re5 {[%clk 0:00:42.3]} 52. Rh8 {[%clk 0:00:20.9]}
52... g3+ {[%clk 0:00:27.8]} 53. Kf1 {[%clk 0:00:21.9]} 53... Ke3 {[%clk
0:00:29.4]} 54. Rh7 {[%clk 0:00:15]} 54... Re6 {[%clk 0:00:16.4]} 55. Rh8 {[%clk
0:00:14.6]} 55... Re4 {[%clk 0:00:15.4]} 56. Rh7 {[%clk 0:00:14.9]} 56... Rf4+
{[%clk 0:00:07]} 57. Ke1 {[%clk 0:00:15.6]} 57... Rb4 {[%clk 0:00:05.3]} 58.
Re7+ {[%clk 0:00:15.3]} 58... Kf4 {[%clk 0:00:06.4]} 59. Rf7+ {[%clk 0:00:16.4]}
59... Kg5 {[%clk 0:00:06.5]} 60. Rg7+ {[%clk 0:00:15.7]} 60... Kh6 {[%clk
0:00:04.9]} 61. Rg8 {[%clk 0:00:09.4]} 61... Rf4 {[%clk 0:00:05.5]} 62. Rh8+
{[%clk 0:00:08.7]} 62... Kg7 {[%clk 0:00:06.7]} 63. Rh5 {[%clk 0:00:09.6]} 63...
Kg6 {[%clk 0:00:07.3]} 64. Rh8 {[%clk 0:00:10.5]} 64... Kg5 {[%clk 0:00:05.9]}
65. Rg8+ {[%clk 0:00:11.5]} 65... Kh6 {[%clk 0:00:05.4]} 66. Rh8+ {[%clk
0:00:12.6]} 66... Kg6 {[%clk 0:00:06.9]} 67. Rg8+ {[%clk 0:00:13.5]} 67... Kf7
{[%clk 0:00:08.1]} 68. Rh8 {[%clk 0:00:14.4]} 68... Ra4 {[%clk 0:00:06.3]} 69.
Kf1 {[%clk 0:00:13.5]} 69... Re4 {[%clk 0:00:03.5]} 70. Rh5 {[%clk 0:00:12.5]}
70... Kg6 {[%clk 0:00:04.5]} 71. Rh8 {[%clk 0:00:13.4]} 71... Kf5 {[%clk
0:00:04.2]} 72. Rf8+ {[%clk 0:00:13.3]} 72... Kg4 {[%clk 0:00:05.6]} 73. Rg8+
{[%clk 0:00:14.5]} 73... Kf4 {[%clk 0:00:06.8]} 74. Rh8 {[%clk 0:00:15.1]} 74...
Ke3 {[%clk 0:00:08.5]} 75. Rh7 {[%clk 0:00:15.6]} 75... Rd4 {[%clk 0:00:04.8]}
76. Re7+ {[%clk 0:00:14.5]} 76... Kd2 {[%clk 0:00:06.2]} 77. Rf7 {[%clk
0:00:08.9]} 77... Kd3 {[%clk 0:00:03.9]} 78. Rh7 {[%clk 0:00:06.9]} 78... Re4
{[%clk 0:00:03.4]} 79. Rh8 {[%clk 0:00:06.4]} 79... Rf4+ {[%clk 0:00:02.9]} 80.
Ke1 {[%clk 0:00:04.5]} 80... Rc4 {[%clk 0:00:03.8]} 81. Rd8+ {[%clk 0:00:04.3]}
81... Ke4 {[%clk 0:00:04.4]} 82. Rh8 {[%clk 0:00:04.7]} 82... Rc1+ {[%clk
0:00:04.5]} 83. Ke2 {[%clk 0:00:05.7]} 83... Rc2+ {[%clk 0:00:05.9]} 84. Kf1
{[%clk 0:00:07]} 84... Rc1+ {[%clk 0:00:02.5]} 85. Ke2 {[%clk 0:00:07.9]} 85...
Rc2+ {[%clk 0:00:02.8]} 86. Kf1 {[%clk 0:00:09.2]} 86... Kd3 {[%clk 0:00:03.5]}
87. Rd8+ {[%clk 0:00:09.4]} 87... Ke3 {[%clk 0:00:04.5]} 88. Re8+ {[%clk
0:00:10.8]} 88... Kf4 {[%clk 0:00:05.9]} 89. Rf8+ {[%clk 0:00:12.2]} 89... Kg5
{[%clk 0:00:07.3]} 90. Rg8+ {[%clk 0:00:13.5]} 90... Kf6 {[%clk 0:00:08.5]} 91.
Rh8 {[%clk 0:00:14.1]} 91... Rc1+ {[%clk 0:00:07.3]} 92. Ke2 {[%clk 0:00:14.9]}
92... Rh1 {[%clk 0:00:08.6]} 93. Kf3 {[%clk 0:00:14.2]} 93... Rh2 {[%clk
0:00:04.4]} 94. Kg4 {[%clk 0:00:11.3]} 94... Rxg2 {[%clk 0:00:05.1]} 95. Rxh4
{[%clk 0:00:12.4]} 95... Rg1 {[%clk 0:00:05.2]} 96. Kf3 {[%clk 0:00:12.3]} 96...
g2 {[%clk 0:00:05.2]} 97. Rg4 {[%clk 0:00:12.2]} 97... Kf5 {[%clk 0:00:05.5]}
98. Rxg2 {[%clk 0:00:13.1]} 98... Rxg2 {[%clk 0:00:07.4]} 99. Kxg2 {[%clk
0:00:15]} 1/2-1/2

[Event "GrandPrix_29.05"]
[Site "Chess.com"]
[Date "2020.05.29"]
[Round "7"]
[White "chessdjw"]
[Black "tacticthunder"]
[Result "1/2-1/2"]
[WhiteElo "2125"]
[BlackElo "2182"]
[TimeControl "600+2"]
[EndTime "12:38:04 PDT"]
[Termination "Game drawn by 50-move rule"]

1. e4 {[%clk 0:10:01.7]} 1... c5 {[%clk 0:09:45.9]} 2. Nf3 {[%clk 0:10:02.3]}
2... e6 {[%clk 0:09:43.6]} 3. d4 {[%clk 0:10:01.9]} 3... cxd4 {[%clk 0:09:45.5]}
4. Nxd4 {[%clk 0:10:03.2]} 4... Nc6 {[%clk 0:09:47.3]} 5. Nc3 {[%clk 0:10:04]}
5... Qc7 {[%clk 0:09:44.4]} 6. a3 {[%clk 0:10:02.9]} 6... a6 {[%clk 0:09:40.8]}
7. f4 {[%clk 0:10:01.8]} 7... b5 {[%clk 0:09:36.5]} 8. Nxc6 {[%clk 0:10:01.1]}
8... Qxc6 {[%clk 0:09:36.7]} 9. Be2 {[%clk 0:10:01.1]} 9... Bc5 {[%clk
0:09:35.3]} 10. Bf3 {[%clk 0:09:58.9]} 10... Bb7 {[%clk 0:09:35]} 11. e5 {[%clk
0:09:44.9]} 11... Qb6 {[%clk 0:09:23.9]} 12. Ne4 {[%clk 0:09:38.7]} 12... Bxe4
{[%clk 0:09:14.6]} 13. Bxe4 {[%clk 0:09:39.5]} 13... Rd8 {[%clk 0:09:14.4]} 14.
Qg4 {[%clk 0:09:29.3]} 14... g6 {[%clk 0:08:41.8]} 15. Qf3 {[%clk 0:09:20.6]}
15... d5 {[%clk 0:07:37.4]} 16. exd6 {[%clk 0:09:13]} 16... Qxd6 {[%clk
0:07:35.9]} 17. Bd3 {[%clk 0:08:52.8]} 17... Nf6 {[%clk 0:06:15.3]} 18. Bd2
{[%clk 0:08:52]} 18... O-O {[%clk 0:06:14.3]} 19. O-O-O {[%clk 0:08:50.8]} 19...
Qd5 {[%clk 0:05:56.9]} 20. Qxd5 {[%clk 0:08:48.8]} 20... exd5 {[%clk 0:05:47.9]}
21. Rhe1 {[%clk 0:07:10.7]} 21... Rfe8 {[%clk 0:05:44.1]} 22. Rxe8+ {[%clk
0:06:56.2]} 22... Rxe8 {[%clk 0:05:43.3]} 23. Re1 {[%clk 0:06:57.4]} 23... Ne4
{[%clk 0:05:33.4]} 24. g3 {[%clk 0:06:44.7]} 24... f5 {[%clk 0:05:26.6]} 25. Bc3
{[%clk 0:06:30.2]} 25... Kf7 {[%clk 0:05:11.1]} 26. Be5 {[%clk 0:06:30.6]} 26...
h5 {[%clk 0:04:48.6]} 27. c3 {[%clk 0:06:09.8]} 27... Ke6 {[%clk 0:03:54.7]} 28.
Bc2 {[%clk 0:06:09.1]} 28... Bd6 {[%clk 0:03:27.4]} 29. Bd4 {[%clk 0:06:07]}
29... h4 {[%clk 0:03:23]} 30. Bb3 {[%clk 0:06:02.4]} 30... g5 {[%clk 0:01:16.7]}
31. fxg5 {[%clk 0:05:43.6]} 31... hxg3 {[%clk 0:01:16.1]} 32. hxg3 {[%clk
0:05:37.3]} 32... Bxg3 {[%clk 0:01:18]} 33. Rd1 {[%clk 0:05:20.6]} 33... Bf4+
{[%clk 0:01:07.5]} 34. Kc2 {[%clk 0:05:21.1]} 34... Bxg5 {[%clk 0:01:06.9]} 35.
Bb6 {[%clk 0:04:49.4]} 35... Nf6 {[%clk 0:01:07.1]} 36. a4 {[%clk 0:04:50.7]}
36... Bf4 {[%clk 0:00:59.3]} 37. axb5 {[%clk 0:04:43.8]} 37... axb5 {[%clk
0:01:01.2]} 38. Ra1 {[%clk 0:04:41.4]} 38... Rh8 {[%clk 0:00:59.1]} 39. Ra5
{[%clk 0:04:37.3]} 39... Ne4 {[%clk 0:00:56.5]} 40. Rxb5 {[%clk 0:03:46.9]}
40... Rh2+ {[%clk 0:00:55.6]} 41. Kb1 {[%clk 0:03:48]} 41... Nd2+ {[%clk
0:00:55.8]} 42. Ka2 {[%clk 0:03:49]} 42... Nxb3 {[%clk 0:00:56]} 43. Kxb3 {[%clk
0:03:49.1]} 43... Bc1 {[%clk 0:00:55.4]} 44. Ka2 {[%clk 0:03:43.6]} 44... f4
{[%clk 0:00:54.4]} 45. Bc7 {[%clk 0:01:46.8]} 45... f3 {[%clk 0:00:18.2]} 46.
Rb6+ {[%clk 0:01:25.6]} 46... Kf5 {[%clk 0:00:17.4]} 47. Bxh2 {[%clk 0:01:13.5]}
47... f2 {[%clk 0:00:18.8]} 48. Rb8 {[%clk 0:00:29.3]} 48... Bg5 {[%clk
0:00:19.5]} 49. Rf8+ {[%clk 0:00:10.6]} 49... Bf6 {[%clk 0:00:19.6]} 50. Bc7
{[%clk 0:00:06.4]} 50... f1=Q {[%clk 0:00:17.7]} 51. Bd8 {[%clk 0:00:07.9]}
51... Qa6+ {[%clk 0:00:12.1]} 52. Kb1 {[%clk 0:00:09]} 52... Qd3+ {[%clk
0:00:13.1]} 53. Ka1 {[%clk 0:00:09.6]} 53... Qf1+ {[%clk 0:00:11.9]} 54. Ka2
{[%clk 0:00:10.3]} 54... Qc4+ {[%clk 0:00:13.8]} 55. Ka1 {[%clk 0:00:11.3]}
55... Qa4+ {[%clk 0:00:13.7]} 56. Kb1 {[%clk 0:00:12.7]} 56... Ke4 {[%clk
0:00:11.6]} 57. Bxf6 {[%clk 0:00:12.5]} 57... Qd1+ {[%clk 0:00:07.5]} 58. Ka2
{[%clk 0:00:13.2]} 58... Qa4+ {[%clk 0:00:09.4]} 59. Kb1 {[%clk 0:00:14.5]}
59... Kd3 {[%clk 0:00:11.3]} 60. Bd4 {[%clk 0:00:14.7]} 60... Qc2+ {[%clk
0:00:11.3]} 61. Ka2 {[%clk 0:00:15.8]} 61... Qe2 {[%clk 0:00:11.3]} 62. Ra8
{[%clk 0:00:15.2]} 62... Kc2 {[%clk 0:00:10.6]} 63. Ra7 {[%clk 0:00:12.8]} 63...
Qc4+ {[%clk 0:00:11.2]} 64. Ka1 {[%clk 0:00:13.1]} 64... Qf1+ {[%clk 0:00:11.4]}
65. Ka2 {[%clk 0:00:14.6]} 65... Qb1+ {[%clk 0:00:04.4]} 66. Ka3 {[%clk
0:00:15.9]} 66... Qxb2+ {[%clk 0:00:06.3]} 67. Ka4 {[%clk 0:00:17.2]} 67... Kd3
{[%clk 0:00:07.8]} 68. Ra5 {[%clk 0:00:15.7]} 68... Kc4 {[%clk 0:00:07.3]} 69.
Rc5+ {[%clk 0:00:16.4]} 69... Kd3 {[%clk 0:00:08.5]} 70. Ra5 {[%clk 0:00:16.3]}
70... Qb7 {[%clk 0:00:09]} 71. Rb5 {[%clk 0:00:16.6]} 71... Qa6+ {[%clk
0:00:09.8]} 72. Kb4 {[%clk 0:00:17.7]} 72... Qd6+ {[%clk 0:00:09.1]} 73. Kb3
{[%clk 0:00:17.1]} 73... Qc6 {[%clk 0:00:09.7]} 74. Rc5 {[%clk 0:00:16.3]} 74...
Qb7+ {[%clk 0:00:10.1]} 75. Ka4 {[%clk 0:00:16.9]} 75... Kc2 {[%clk 0:00:09.7]}
76. Rb5 {[%clk 0:00:17.8]} 76... Qa6+ {[%clk 0:00:10.1]} 77. Kb4 {[%clk
0:00:16.9]} 77... Qd6+ {[%clk 0:00:10.7]} 78. Ka5 {[%clk 0:00:17]} 78... Kd3
{[%clk 0:00:10]} 79. Rb6 {[%clk 0:00:16.3]} 79... Qd7 {[%clk 0:00:08.5]} 80. Kb4
{[%clk 0:00:14.5]} 80... Qc7 {[%clk 0:00:07.7]} 81. Rb5 {[%clk 0:00:12.2]} 81...
Qc6 {[%clk 0:00:06.4]} 82. Rc5 {[%clk 0:00:12.3]} 82... Qa6 {[%clk 0:00:07.3]}
83. Rb5 {[%clk 0:00:09.6]} 83... Qd6+ {[%clk 0:00:08.3]} 84. Ka5 {[%clk
0:00:09.8]} 84... Qc7+ {[%clk 0:00:07.9]} 85. Kb4 {[%clk 0:00:07.4]} 85... Qc4+
{[%clk 0:00:07.7]} 86. Ka5 {[%clk 0:00:08.6]} 86... Qa2+ {[%clk 0:00:08.4]} 87.
Kb6 {[%clk 0:00:09.5]} 87... Qc4 {[%clk 0:00:08.7]} 88. Rc5 {[%clk 0:00:10.5]}
88... Qb3+ {[%clk 0:00:09.2]} 89. Kc6 {[%clk 0:00:11.1]} 89... Ke4 {[%clk
0:00:08.6]} 90. Rb5 {[%clk 0:00:12.3]} 90... Qc4+ {[%clk 0:00:08.1]} 91. Kb6
{[%clk 0:00:12.1]} 91... Qc8 {[%clk 0:00:08.2]} 92. Rc5 {[%clk 0:00:13.1]} 92...
Qb8+ {[%clk 0:00:09]} 93. Ka5 {[%clk 0:00:13.8]} 93... Qa8+ {[%clk 0:00:06.4]}
94. Kb4 {[%clk 0:00:14.3]} 94... Qa6 {[%clk 0:00:06.5]} 95. Rb5 {[%clk
0:00:14.6]} 95... Qd6+ {[%clk 0:00:06.1]} 96. Ka5 {[%clk 0:00:15.1]} 96... Qc6
{[%clk 0:00:06.1]} 97. Rc5 {[%clk 0:00:15.8]} 97... Qb7 {[%clk 0:00:07.1]} 98.
Rb5 {[%clk 0:00:16.6]} 98... Qc7+ {[%clk 0:00:08.1]} 99. Kb4 {[%clk 0:00:16.7]}
99... Qc6 {[%clk 0:00:06.9]} 100. Rc5 {[%clk 0:00:16.7]} 100... Qa6 {[%clk
0:00:08.1]} 101. Ra5 {[%clk 0:00:17.3]} 101... Qc8 {[%clk 0:00:09.3]} 102. Rb5
{[%clk 0:00:17.4]} 102... Qc4+ {[%clk 0:00:07.2]} 103. Ka5 {[%clk 0:00:18.3]}
103... Kf5 {[%clk 0:00:08.2]} 104. Rc5 {[%clk 0:00:17.9]} 104... Qb3 {[%clk
0:00:08.8]} 105. Rb5 {[%clk 0:00:18.4]} 105... Qa3+ {[%clk 0:00:09.4]} 106. Kb6
{[%clk 0:00:19.2]} 106... Ke6 {[%clk 0:00:11.3]} 107. Rc5 {[%clk 0:00:20]}
107... Kd6 {[%clk 0:00:08.7]} 108. Rc6+ {[%clk 0:00:20.2]} 108... Kd7 {[%clk
0:00:09.2]} 109. Rc7+ {[%clk 0:00:21.2]} 109... Kd8 {[%clk 0:00:09.2]} 110. Bf6+
{[%clk 0:00:21.1]} 110... Ke8 {[%clk 0:00:09.7]} 111. Bd4 {[%clk 0:00:20.4]}
111... Kd8 {[%clk 0:00:09.1]} 112. Bf6+ {[%clk 0:00:21.1]} 112... Ke8 {[%clk
0:00:09.8]} 113. Bd4 {[%clk 0:00:22.3]} 113... Qd6+ {[%clk 0:00:09.3]} 114. Rc6
{[%clk 0:00:22.2]} 114... Qa3 {[%clk 0:00:09.4]} 115. Rc8+ {[%clk 0:00:19.7]}
115... Kd7 {[%clk 0:00:08.5]} 116. Rc7+ {[%clk 0:00:21]} 116... Ke6 {[%clk
0:00:08.2]} 1/2-1/2

[Event "GrandPrix_29.05"]
[Site "Chess.com"]
[Date "2020.05.29"]
[Round "8"]
[White "Sporty207"]
[Black "MasterSonnevanck2"]
[Result "1/2-1/2"]
[WhiteElo "2215"]
[BlackElo "2095"]
[TimeControl "600+2"]
[EndTime "12:44:47 PDT"]
[Termination "Game drawn by agreement"]

1. d4 {[%clk 0:09:36.5]} 1... Nf6 {[%clk 0:09:56.2]} 2. c4 {[%clk 0:09:35.2]}
2... e6 {[%clk 0:09:57]} 3. Nc3 {[%clk 0:09:33.8]} 3... Bb4 {[%clk 0:09:56.2]}
4. e3 {[%clk 0:09:18.1]} 4... O-O {[%clk 0:09:56.3]} 5. Bd2 {[%clk 0:09:19.2]}
5... c5 {[%clk 0:09:43.1]} 6. a3 {[%clk 0:09:11.9]} 6... Bxc3 {[%clk 0:09:37]}
7. Bxc3 {[%clk 0:09:13.8]} 7... Ne4 {[%clk 0:09:37.1]} 8. Ne2 {[%clk 0:09:02.5]}
8... b6 {[%clk 0:09:05.8]} 9. d5 {[%clk 0:08:56.3]} 9... Bb7 {[%clk 0:09:00.1]}
10. f3 {[%clk 0:08:33.1]} 10... Nxc3 {[%clk 0:08:57.7]} 11. Nxc3 {[%clk
0:08:35]} 11... d6 {[%clk 0:08:53]} 12. Bd3 {[%clk 0:08:31.2]} 1/2-1/2

[Event "GrandPrix_29.05"]
[Site "Chess.com"]
[Date "2020.05.29"]
[Round "8"]
[White "titan013"]
[Black "Shota_Azaladze"]
[Result "1-0"]
[WhiteElo "2205"]
[BlackElo "2124"]
[TimeControl "600+2"]
[EndTime "12:46:30 PDT"]
[Termination "titan013 won by resignation"]

1. e4 {[%clk 0:10:01.9]} 1... g6 {[%clk 0:10:00.3]} 2. d4 {[%clk 0:10:02.6]}
2... Bg7 {[%clk 0:10:01.6]} 3. Nf3 {[%clk 0:10:04.2]} 3... c6 {[%clk 0:10:02.7]}
4. Nc3 {[%clk 0:10:04.9]} 4... d5 {[%clk 0:10:03.7]} 5. h3 {[%clk 0:10:06.5]}
5... Nf6 {[%clk 0:10:04.5]} 6. Bd3 {[%clk 0:10:05.6]} 6... Nxe4 {[%clk
0:10:04.8]} 7. Nxe4 {[%clk 0:10:06.7]} 7... dxe4 {[%clk 0:10:05.4]} 8. Bxe4
{[%clk 0:10:08.1]} 8... Nd7 {[%clk 0:10:07]} 9. O-O {[%clk 0:10:08.4]} 9... O-O
{[%clk 0:10:07.6]} 10. Re1 {[%clk 0:10:09.1]} 10... Qc7 {[%clk 0:10:07.3]} 11.
c3 {[%clk 0:09:49.1]} 11... c5 {[%clk 0:10:07.6]} 12. Bg5 {[%clk 0:09:41]} 12...
e6 {[%clk 0:10:07.4]} 13. Qd2 {[%clk 0:09:34.5]} 13... Re8 {[%clk 0:10:07.1]}
14. Rad1 {[%clk 0:08:52.3]} 14... a6 {[%clk 0:10:03.4]} 15. Bf4 {[%clk
0:07:28.2]} 15... Qb6 {[%clk 0:10:00.9]} 16. Ne5 {[%clk 0:07:16.5]} 16... cxd4
{[%clk 0:09:58.7]} 17. cxd4 {[%clk 0:07:15.3]} 17... Nf6 {[%clk 0:09:58.3]} 18.
Bf3 {[%clk 0:07:16.4]} 18... Nd5 {[%clk 0:09:57.4]} 19. Nc4 {[%clk 0:06:57.7]}
19... Qd8 {[%clk 0:09:51.1]} 20. Bxd5 {[%clk 0:06:50.3]} 20... exd5 {[%clk
0:09:51.3]} 21. Rxe8+ {[%clk 0:06:50.7]} 21... Qxe8 {[%clk 0:09:53.2]} 22. Nb6
{[%clk 0:06:51.6]} 22... Ra7 {[%clk 0:09:54.3]} 23. Bb8 {[%clk 0:06:50.5]} 23...
Ra8 {[%clk 0:09:48.6]} 24. Nxa8 {[%clk 0:06:49.9]} 24... Bf5 {[%clk 0:09:49.5]}
25. Qf4 {[%clk 0:06:47.2]} 1-0

[Event "GrandPrix_29.05"]
[Site "Chess.com"]
[Date "2020.05.29"]
[Round "8"]
[White "Lavrov_Maxim"]
[Black "Azatic"]
[Result "1/2-1/2"]
[WhiteElo "2303"]
[BlackElo "2426"]
[TimeControl "600+2"]
[EndTime "12:46:32 PDT"]
[Termination "Game drawn by agreement"]

1. e4 {[%clk 0:10:01.9]} 1... c5 {[%clk 0:10:00.8]} 2. c3 {[%clk 0:10:02.2]}
2... d5 {[%clk 0:09:56.3]} 3. exd5 {[%clk 0:10:02.6]} 3... Qxd5 {[%clk
0:09:58.2]} 4. d4 {[%clk 0:10:03.6]} 4... Nf6 {[%clk 0:09:55.8]} 5. Nf3 {[%clk
0:10:02.4]} 5... e6 {[%clk 0:09:54.8]} 6. Be2 {[%clk 0:10:00.2]} 6... Nc6 {[%clk
0:09:54.8]} 7. O-O {[%clk 0:09:57.9]} 7... cxd4 {[%clk 0:09:51.6]} 8. cxd4
{[%clk 0:09:58.3]} 8... Be7 {[%clk 0:09:48.3]} 9. Nc3 {[%clk 0:09:58.7]} 9...
Qd6 {[%clk 0:09:49]} 10. Be3 {[%clk 0:09:44.3]} 10... O-O {[%clk 0:09:48.3]} 11.
a3 {[%clk 0:09:42]} 11... b6 {[%clk 0:09:47.6]} 12. Nb5 {[%clk 0:09:27.3]} 12...
Qd8 {[%clk 0:09:33.5]} 13. Ne5 {[%clk 0:08:25.5]} 13... Nxe5 {[%clk 0:09:26.2]}
14. dxe5 {[%clk 0:08:25.8]} 14... Nd5 {[%clk 0:09:27.7]} 15. Bd4 {[%clk
0:08:13.2]} 15... Bb7 {[%clk 0:09:22.8]} 16. Bf3 {[%clk 0:08:13.5]} 16... a6
{[%clk 0:08:57.5]} 17. Nc3 {[%clk 0:08:11]} 17... Nxc3 {[%clk 0:08:47.7]} 18.
Bxc3 {[%clk 0:07:49.1]} 18... Qxd1 {[%clk 0:08:49.6]} 19. Bxd1 {[%clk
0:07:46.2]} 1/2-1/2

[Event "GrandPrix_29.05"]
[Site "Chess.com"]
[Date "2020.05.29"]
[Round "8"]
[White "ly4o"]
[Black "PeshkaTheGreat"]
[Result "1-0"]
[WhiteElo "2021"]
[BlackElo "2111"]
[TimeControl "600+2"]
[EndTime "12:46:45 PDT"]
[Termination "ly4o won by resignation"]

1. d4 {[%clk 0:10:01.9]} 1... d5 {[%clk 0:10:00]} 2. c4 {[%clk 0:10:03.1]} 2...
c6 {[%clk 0:10:00.4]} 3. Nf3 {[%clk 0:10:04.1]} 3... Nf6 {[%clk 0:09:56.2]} 4.
e3 {[%clk 0:10:03]} 4... e6 {[%clk 0:09:55.8]} 5. Nc3 {[%clk 0:10:01.4]} 5...
Nbd7 {[%clk 0:09:55.4]} 6. Qb3 {[%clk 0:09:53.6]} 6... Bd6 {[%clk 0:09:49.8]} 7.
Bd3 {[%clk 0:09:50.1]} 7... dxc4 {[%clk 0:09:47.2]} 8. Bxc4 {[%clk 0:09:51.1]}
8... b5 {[%clk 0:09:48.5]} 9. Bd3 {[%clk 0:09:52.6]} 9... O-O {[%clk 0:09:49.4]}
10. O-O {[%clk 0:09:53.2]} 10... Bb7 {[%clk 0:09:50.3]} 11. Rd1 {[%clk 0:09:54]}
11... Qc7 {[%clk 0:09:43.8]} 12. h3 {[%clk 0:09:54.2]} 12... a6 {[%clk
0:09:44.3]} 13. e4 {[%clk 0:09:50.6]} 13... e5 {[%clk 0:09:40.9]} 14. dxe5
{[%clk 0:09:45.3]} 14... Nxe5 {[%clk 0:09:41.7]} 15. Nxe5 {[%clk 0:09:46.4]}
15... Bxe5 {[%clk 0:09:43.6]} 16. Be3 {[%clk 0:09:47.5]} 16... c5 {[%clk
0:09:40.8]} 17. Qc2 {[%clk 0:09:43.3]} 17... c4 {[%clk 0:09:39.6]} 18. Be2
{[%clk 0:09:44.6]} 18... Bxc3 {[%clk 0:09:05.9]} 19. Qxc3 {[%clk 0:09:46.5]}
19... Nxe4 {[%clk 0:09:06.6]} 20. Qc2 {[%clk 0:09:47.8]} 20... Rfe8 {[%clk
0:09:00.5]} 21. Bf3 {[%clk 0:09:47.9]} 21... Nf6 {[%clk 0:08:59.3]} 22. Bxb7
{[%clk 0:09:48.8]} 22... Qxb7 {[%clk 0:09:01.2]} 23. Rd6 {[%clk 0:09:50.2]}
23... Rad8 {[%clk 0:08:58.8]} 24. Rad1 {[%clk 0:09:50.6]} 24... Rxd6 {[%clk
0:08:28.6]} 25. Rxd6 {[%clk 0:09:52.5]} 25... Nd5 {[%clk 0:08:27.2]} 26. Qe4
{[%clk 0:09:50.2]} 26... Qe7 {[%clk 0:08:07.6]} 27. Qxd5 {[%clk 0:09:49.2]}
27... Qh4 {[%clk 0:07:58.9]} 28. Rd7 {[%clk 0:09:45.1]} 28... Qf6 {[%clk
0:07:59.7]} 29. Rd6 {[%clk 0:09:33.7]} 29... Qh4 {[%clk 0:07:56.9]} 30. Rxa6
{[%clk 0:09:25.4]} 30... Rd8 {[%clk 0:07:44.1]} 31. Ra8 {[%clk 0:09:19.2]} 1-0

[Event "GrandPrix_29.05"]
[Site "Chess.com"]
[Date "2020.05.29"]
[Round "8"]
[White "MaxVavulin"]
[Black "Jaka_Brilej"]
[Result "1-0"]
[WhiteElo "2014"]
[BlackElo "2115"]
[TimeControl "600+2"]
[EndTime "12:47:23 PDT"]
[Termination "MaxVavulin won by resignation"]

1. e4 {[%clk 0:10:01.9]} 1... c5 {[%clk 0:10:00.8]} 2. Nf3 {[%clk 0:09:59.9]}
2... Nc6 {[%clk 0:10:01.2]} 3. d4 {[%clk 0:09:59.9]} 3... cxd4 {[%clk
0:10:02.7]} 4. Nxd4 {[%clk 0:10:01.2]} 4... Nf6 {[%clk 0:10:04]} 5. Nc3 {[%clk
0:10:01.7]} 5... e5 {[%clk 0:10:05.4]} 6. Ndb5 {[%clk 0:10:02.3]} 6... d6 {[%clk
0:10:06.6]} 7. Bg5 {[%clk 0:10:02.9]} 7... a6 {[%clk 0:10:07.8]} 8. Na3 {[%clk
0:10:02.8]} 8... b5 {[%clk 0:10:09.2]} 9. Bxf6 {[%clk 0:10:03.6]} 9... gxf6
{[%clk 0:10:10.1]} 10. Nd5 {[%clk 0:10:04.8]} 10... f5 {[%clk 0:10:06.4]} 11.
Bxb5 {[%clk 0:10:02.4]} 11... axb5 {[%clk 0:10:02.8]} 12. Nxb5 {[%clk 0:10:04]}
12... Ra4 {[%clk 0:10:03.9]} 13. b4 {[%clk 0:10:04.5]} 13... Nxb4 {[%clk
0:09:31.5]} 14. c3 {[%clk 0:07:39.2]} 14... Nxd5 {[%clk 0:09:20.1]} 15. Qxa4
{[%clk 0:07:39.3]} 15... Nb6 {[%clk 0:09:19.4]} 16. Nxd6+ {[%clk 0:07:27]} 16...
Ke7 {[%clk 0:09:19.5]} 17. Nxc8+ {[%clk 0:07:26.9]} 17... Nxc8 {[%clk
0:09:19.6]} 18. exf5 {[%clk 0:07:07.4]} 18... Nd6 {[%clk 0:09:16.2]} 19. f6+
{[%clk 0:06:04.1]} 19... Kxf6 {[%clk 0:09:16]} 20. Qh4+ {[%clk 0:06:04.9]} 1-0